[Event "December 19 Early 2023"]
[Site "https://www.chess.com"]
[Date "2023.12.19"]
[Round "3"]
[White "Boyer, Mahel"]
[Black "Sahin, Sarp"]
[Result "1-0"]
[Board "117"]
[TimeControl "180+1"]
[WhiteFideId "45102422"]
[BlackFideId "51605066"]
[WhiteElo "2449"]
[BlackElo "1775"]
[WhiteTeam "FRA"]
[BlackTeam "TUR"]
[WhiteClock "0:00:49"]
[BlackClock "0:00:00"]

1. e4 {[%clk 0:03:00]}  c5 {[%clk 0:02:46]} 2. d3 {[%clk 0:02:54]}  e6 {[%clk 0:02:43]} 3. g3 {[%clk 0:02:50]}  Nc6 {[%clk 0:01:51]} 4. Bg2 {[%clk 0:02:48]}  Nf6 {[%clk 0:01:52]} 5. e5 {[%clk 0:02:47]}  Nxe5 {[%clk 0:01:22]} 6. Qe2 {[%clk 0:02:46]}  Nc6 {[%clk 0:01:01]} 7. Nf3 {[%clk 0:02:45]}  Be7 {[%clk 0:00:58]} 8. O-O {[%clk 0:02:33]}  O-O {[%clk 0:00:58]} 9. c4 {[%clk 0:02:20]}  d6 {[%clk 0:00:56]} 10. Nc3 {[%clk 0:02:21]}  e5 {[%clk 0:00:55]} 11. h3 {[%clk 0:02:13]}  Be6 {[%clk 0:00:54]} 12. Ng5 {[%clk 0:02:12]}  Bf5 {[%clk 0:00:51]} 13. Be3 {[%clk 0:02:09]}  h6 {[%clk 0:00:49]} 14. Nge4 {[%clk 0:02:06]}  Nxe4 {[%clk 0:00:49]} 15. dxe4 {[%clk 0:01:55]}  Be6 {[%clk 0:00:47]} 16. Nd5 {[%clk 0:01:47]}  Nd4 {[%clk 0:00:45]} 17. Bxd4 {[%clk 0:01:45]}  cxd4 {[%clk 0:00:46]} 18. b3 {[%clk 0:01:37]}  Rc8 {[%clk 0:00:38]} 19. a4 {[%clk 0:01:36]}  a5 {[%clk 0:00:36]} 20. Rad1 {[%clk 0:01:36]}  f5 {[%clk 0:00:33]} 21. f4 {[%clk 0:01:30]}  fxe4 {[%clk 0:00:31]} 22. Qxe4 {[%clk 0:01:25]}  Bf5 {[%clk 0:00:25]} 23. Nxe7+ {[%clk 0:01:21]}  Qxe7 {[%clk 0:00:24]} 24. Qxb7 {[%clk 0:01:22]}  Qxb7 {[%clk 0:00:25]} 25. Bxb7 {[%clk 0:01:23]}  Rb8 {[%clk 0:00:25]} 26. Bd5+ {[%clk 0:01:23]}  Kh8 {[%clk 0:00:26]} 27. g4 {[%clk 0:01:24]}  Bc2 {[%clk 0:00:25]} 28. Rd2 {[%clk 0:01:20]}  Bxb3 {[%clk 0:00:24]} 29. fxe5 {[%clk 0:01:17]}  Rxf1+ {[%clk 0:00:23]} 30. Kxf1 {[%clk 0:01:18]}  dxe5 {[%clk 0:00:24]} 31. Ke2 {[%clk 0:01:09]}  Rb4 {[%clk 0:00:20]} 32. Kd3 {[%clk 0:01:06]}  Rxa4 {[%clk 0:00:19]} 33. Rb2 {[%clk 0:01:04]}  Ra3 {[%clk 0:00:14]} 34. Ke4 {[%clk 0:01:04]}  a4 {[%clk 0:00:14]} 35. Kxe5 {[%clk 0:00:55]}  d3 {[%clk 0:00:14]} 36. Rd2 {[%clk 0:00:52]}  Bc2 {[%clk 0:00:11]} 37. c5 {[%clk 0:00:51]}  Rc3 {[%clk 0:00:10]} 38. Kd4 {[%clk 0:00:52]}  Ra3 {[%clk 0:00:08]} 39. c6 {[%clk 0:00:52]}  Ra1 {[%clk 0:00:00]} 40. c7 {[%clk 0:00:49]} 1-0

[Event "December 19 Early 2023"]
[Site "https://www.chess.com"]
[Date "2023.12.19"]
[Round "3"]
[White "Burmakin, Evgeniy"]
[Black "Omelja, Artem"]
[Result "0-1"]
[Board "118"]
[TimeControl "180+1"]
[WhiteFideId "4163729"]
[BlackFideId "14119846"]
[WhiteElo "2106"]
[BlackElo "2404"]
[WhiteTeam "RUS"]
[BlackTeam "UKR"]
[WhiteClock "0:00:09"]
[BlackClock "0:00:17"]

1. e4 {[%clk 0:03:00]}  c5 {[%clk 0:02:24]} 2. Nc3 {[%clk 0:02:59]}  Nc6 {[%clk 0:02:23]} 3. Bb5 {[%clk 0:02:59]}  Nd4 {[%clk 0:02:21]} 4. Bc4 {[%clk 0:02:59]}  e6 {[%clk 0:02:21]} 5. Nge2 {[%clk 0:02:55]}  Ne7 {[%clk 0:02:22]} 6. O-O {[%clk 0:02:54]}  Nec6 {[%clk 0:02:22]} 7. d3 {[%clk 0:02:52]}  Be7 {[%clk 0:02:19]} 8. Be3 {[%clk 0:02:51]}  O-O {[%clk 0:02:19]} 9. Qd2 {[%clk 0:02:46]}  a6 {[%clk 0:02:19]} 10. a4 {[%clk 0:02:45]}  b6 {[%clk 0:02:17]} 11. Nd1 {[%clk 0:02:42]}  Bb7 {[%clk 0:02:12]} 12. c3 {[%clk 0:02:42]}  Nxe2+ {[%clk 0:02:12]} 13. Qxe2 {[%clk 0:02:43]}  d5 {[%clk 0:02:12]} 14. Ba2 {[%clk 0:02:40]}  Re8 {[%clk 0:02:03]} 15. f3 {[%clk 0:02:40]}  Bf6 {[%clk 0:02:02]} 16. Nf2 {[%clk 0:02:38]}  d4 {[%clk 0:02:01]} 17. Bd2 {[%clk 0:02:38]}  Qd7 {[%clk 0:01:54]} 18. f4 {[%clk 0:02:33]}  Rad8 {[%clk 0:01:52]} 19. Rad1 {[%clk 0:02:28]}  g6 {[%clk 0:01:48]} 20. Qf3 {[%clk 0:02:14]}  Bg7 {[%clk 0:01:44]} 21. g4 {[%clk 0:02:11]}  dxc3 {[%clk 0:01:36]} 22. bxc3 {[%clk 0:02:11]}  Na5 {[%clk 0:01:37]} 23. f5 {[%clk 0:02:03]}  Qxa4 {[%clk 0:01:26]} 24. Ra1 {[%clk 0:01:47]}  Qd7 {[%clk 0:01:23]} 25. Nh3 {[%clk 0:01:34]}  Qxd3 {[%clk 0:00:46]} 26. fxe6 {[%clk 0:01:27]}  fxe6 {[%clk 0:00:46]} 27. Qf7+ {[%clk 0:01:07]}  Kh8 {[%clk 0:00:45]} 28. Ng5 {[%clk 0:00:28]}  Qxd2 {[%clk 0:00:39]} 29. Nxe6 {[%clk 0:00:18]}  Qe3+ {[%clk 0:00:34]} 30. Rf2 {[%clk 0:00:16]}  Rxe6 {[%clk 0:00:26]} 31. Qxe6 {[%clk 0:00:14]}  Qxe4 {[%clk 0:00:17]} 32. Qxe4 {[%clk 0:00:11]}  Bxe4 {[%clk 0:00:18]} 33. Rd1 {[%clk 0:00:09]}  Rxd1+ {[%clk 0:00:17]} 0-1

[Event "December 19 Early 2023"]
[Site "https://www.chess.com"]
[Date "2023.12.19"]
[Round "3"]
[White "Nasir, Zehn"]
[Black "Ovezdurdyyeva, Jemal"]
[Result "1-0"]
[Board "121"]
[TimeControl "180+1"]
[WhiteFideId "2613239"]
[BlackFideId "14001888"]
[WhiteElo "2004"]
[BlackElo "2086"]
[WhiteTeam "CAN"]
[BlackTeam "TKM"]
[WhiteClock "0:00:15"]
[BlackClock "0:00:44"]

1. d4 {[%clk 0:03:00]}  Nf6 {[%clk 0:02:59]} 2. Bf4 {[%clk 0:03:00]}  e6 {[%clk 0:02:58]} 3. e3 {[%clk 0:02:59]}  b6 {[%clk 0:02:57]} 4. Nf3 {[%clk 0:02:58]}  Bb7 {[%clk 0:02:57]} 5. Bd3 {[%clk 0:02:58]}  Be7 {[%clk 0:02:56]} 6. Nbd2 {[%clk 0:02:58]}  O-O {[%clk 0:02:57]} 7. O-O {[%clk 0:02:58]}  c5 {[%clk 0:02:57]} 8. h3 {[%clk 0:02:57]}  d5 {[%clk 0:02:53]} 9. c3 {[%clk 0:02:56]}  Nbd7 {[%clk 0:02:50]} 10. Ne5 {[%clk 0:02:55]}  Nxe5 {[%clk 0:02:49]} 11. dxe5 {[%clk 0:02:45]}  Nd7 {[%clk 0:02:49]} 12. Qh5 {[%clk 0:02:41]}  g6 {[%clk 0:02:44]} 13. Qh6 {[%clk 0:02:41]}  Qe8 {[%clk 0:02:32]} 14. Nf3 {[%clk 0:02:33]}  f6 {[%clk 0:02:31]} 15. Rad1 {[%clk 0:02:24]}  fxe5 {[%clk 0:02:25]} 16. Nxe5 {[%clk 0:02:23]}  Nxe5 {[%clk 0:02:24]} 17. Bxe5 {[%clk 0:02:24]}  Bf6 {[%clk 0:02:25]} 18. Bxf6 {[%clk 0:02:11]}  Rxf6 {[%clk 0:02:25]} 19. h4 {[%clk 0:01:58]}  Qf7 {[%clk 0:02:22]} 20. f4 {[%clk 0:01:49]}  Rf8 {[%clk 0:02:05]} 21. Qg5 {[%clk 0:01:42]}  Kh8 {[%clk 0:02:04]} 22. Rf2 {[%clk 0:01:23]}  d4 {[%clk 0:01:48]} 23. exd4 {[%clk 0:01:18]}  cxd4 {[%clk 0:01:46]} 24. cxd4 {[%clk 0:01:12]}  Rxf4 {[%clk 0:01:46]} 25. Qe5+ {[%clk 0:01:12]}  Kg8 {[%clk 0:01:45]} 26. Rxf4 {[%clk 0:01:08]}  Qxf4 {[%clk 0:01:45]} 27. Qxe6+ {[%clk 0:01:06]}  Kg7 {[%clk 0:01:46]} 28. Qe5+ {[%clk 0:01:04]}  Qxe5 {[%clk 0:01:21]} 29. dxe5 {[%clk 0:01:04]}  Rd8 {[%clk 0:01:22]} 30. Rc1 {[%clk 0:00:48]}  Kf7 {[%clk 0:01:16]} 31. Bc4+ {[%clk 0:00:45]}  Bd5 {[%clk 0:01:15]} 32. Bxd5+ {[%clk 0:00:33]}  Rxd5 {[%clk 0:01:15]} 33. Rc7+ {[%clk 0:00:34]}  Ke6 {[%clk 0:01:16]} 34. Rxa7 {[%clk 0:00:32]}  h5 {[%clk 0:01:12]} 35. Rg7 {[%clk 0:00:31]}  Kf5 {[%clk 0:01:03]} 36. e6 {[%clk 0:00:31]}  Re5 {[%clk 0:00:52]} 37. e7 {[%clk 0:00:24]}  Kf6 {[%clk 0:00:52]} 38. Rh7 {[%clk 0:00:20]}  g5 {[%clk 0:00:50]} 39. Rxh5 {[%clk 0:00:15]}  Rxe7 {[%clk 0:00:49]} 40. Rxg5 {[%clk 0:00:15]}  Re1+ {[%clk 0:00:44]} 41. Kh2 {[%clk 0:00:15]} 1-0

[Event "December 19 Early 2023"]
[Site "https://www.chess.com"]
[Date "2023.12.19"]
[Round "3"]
[White "Melikhov, Evgeny V."]
[Black "Skatchkov, Valery"]
[Result "1-0"]
[Board "122"]
[TimeControl "180+1"]
[WhiteFideId "4122046"]
[BlackFideId "24195812"]
[WhiteElo "2165"]
[BlackElo "2320"]
[WhiteTeam "GRE"]
[BlackTeam "RUS"]
[WhiteClock "0:00:09"]
[BlackClock "0:00:32"]

1. d4 {[%clk 0:03:00]}  Nf6 {[%clk 0:02:59]} 2. c4 {[%clk 0:03:00]}  e6 {[%clk 0:02:59]} 3. Nc3 {[%clk 0:03:00]}  d5 {[%clk 0:02:57]} 4. cxd5 {[%clk 0:03:00]}  exd5 {[%clk 0:02:58]} 5. Bg5 {[%clk 0:03:00]}  Bb4 {[%clk 0:02:59]} 6. e3 {[%clk 0:02:59]}  h6 {[%clk 0:02:59]} 7. Bh4 {[%clk 0:02:57]}  g5 {[%clk 0:02:58]} 8. Bg3 {[%clk 0:02:56]}  Ne4 {[%clk 0:02:59]} 9. Rc1 {[%clk 0:02:40]}  h5 {[%clk 0:02:51]} 10. f3 {[%clk 0:02:20]}  Nxg3 {[%clk 0:02:50]} 11. hxg3 {[%clk 0:02:19]}  c6 {[%clk 0:02:46]} 12. Bd3 {[%clk 0:02:18]}  Be6 {[%clk 0:02:36]} 13. Ne2 {[%clk 0:02:17]}  Nd7 {[%clk 0:02:36]} 14. g4 {[%clk 0:02:14]}  Nf6 {[%clk 0:02:26]} 15. gxh5 {[%clk 0:02:10]}  Rxh5 {[%clk 0:02:26]} 16. Rxh5 {[%clk 0:02:08]}  Nxh5 {[%clk 0:02:27]} 17. g4 {[%clk 0:02:04]}  Nf6 {[%clk 0:02:24]} 18. Ng3 {[%clk 0:02:04]}  Qd6 {[%clk 0:02:15]} 19. Kf2 {[%clk 0:01:57]}  Bxc3 {[%clk 0:02:03]} 20. bxc3 {[%clk 0:01:31]}  O-O-O {[%clk 0:02:00]} 21. Qc2 {[%clk 0:01:26]}  Rh8 {[%clk 0:01:54]} 22. Kg2 {[%clk 0:01:25]}  Bxg4 {[%clk 0:01:46]} 23. fxg4 {[%clk 0:01:24]}  Nxg4 {[%clk 0:01:47]} 24. Bf5+ {[%clk 0:01:23]}  Kb8 {[%clk 0:01:37]} 25. Bxg4 {[%clk 0:01:24]}  Rh4 {[%clk 0:01:36]} 26. Qf5 {[%clk 0:01:22]}  a6 {[%clk 0:01:35]} 27. Rh1 {[%clk 0:01:19]}  Qa3 {[%clk 0:01:34]} 28. Qxg5 {[%clk 0:01:11]}  Rxh1 {[%clk 0:01:28]} 29. Nxh1 {[%clk 0:01:06]}  Qxc3 {[%clk 0:01:27]} 30. Nf2 {[%clk 0:01:05]}  Ka7 {[%clk 0:01:27]} 31. Qe7 {[%clk 0:01:02]}  Qd2 {[%clk 0:01:25]} 32. Bc8 {[%clk 0:00:53]}  Qb2 {[%clk 0:01:24]} 33. Qxf7 {[%clk 0:00:43]}  a5 {[%clk 0:01:22]} 34. a4 {[%clk 0:00:41]}  Kb8 {[%clk 0:01:19]} 35. Qe8 {[%clk 0:00:34]}  Qb4 {[%clk 0:01:08]} 36. Bf5+ {[%clk 0:00:27]}  Ka7 {[%clk 0:01:07]} 37. Nd3 {[%clk 0:00:26]}  Qxa4 {[%clk 0:01:02]} 38. Nc5 {[%clk 0:00:25]}  Qa2+ {[%clk 0:01:01]} 39. Kf3 {[%clk 0:00:25]}  Qh2 {[%clk 0:00:56]} 40. Qf7 {[%clk 0:00:21]}  Qh1+ {[%clk 0:00:55]} 41. Kf4 {[%clk 0:00:20]}  Qh6+ {[%clk 0:00:46]} 42. Kf3 {[%clk 0:00:20]}  Qh1+ {[%clk 0:00:46]} 43. Ke2 {[%clk 0:00:20]}  Qg2+ {[%clk 0:00:43]} 44. Kd3 {[%clk 0:00:19]}  Qf1+ {[%clk 0:00:44]} 45. Kc3 {[%clk 0:00:17]}  Qc4+ {[%clk 0:00:43]} 46. Kd2 {[%clk 0:00:16]}  Qb4+ {[%clk 0:00:39]} 47. Ke2 {[%clk 0:00:16]}  a4 {[%clk 0:00:39]} 48. Bc8 {[%clk 0:00:14]}  Qb5+ {[%clk 0:00:33]} 49. Kf2 {[%clk 0:00:13]}  Kb6 {[%clk 0:00:31]} 50. Qxb7+ {[%clk 0:00:12]}  Ka5 {[%clk 0:00:32]} 51. Qxb5+ {[%clk 0:00:12]}  cxb5 {[%clk 0:00:32]} 52. Be6 {[%clk 0:00:12]}  b4 {[%clk 0:00:32]} 53. Bxd5 {[%clk 0:00:12]}  Kb5 {[%clk 0:00:32]} 54. e4 {[%clk 0:00:11]}  Kb6 {[%clk 0:00:31]} 55. Ke3 {[%clk 0:00:11]}  a3 {[%clk 0:00:31]} 56. Nb3 {[%clk 0:00:10]}  Kc7 {[%clk 0:00:32]} 57. Bc4 {[%clk 0:00:10]}  Kd6 {[%clk 0:00:32]} 58. d5 {[%clk 0:00:09]} 1-0

[Event "December 19 Early 2023"]
[Site "https://www.chess.com"]
[Date "2023.12.19"]
[Round "3"]
[White "Lund, Gunnar"]
[Black "Nilsson, Joakim"]
[Result "0-1"]
[Board "123"]
[TimeControl "180+1"]
[WhiteFideId "1520814"]
[BlackFideId "1723383"]
[WhiteElo "2233"]
[BlackElo "2143"]
[WhiteTeam "NOR"]
[BlackTeam "SWE"]
[WhiteClock "0:00:46"]
[BlackClock "0:00:45"]

1. d4 {[%clk 0:03:00]}  Nf6 {[%clk 0:02:59]} 2. c4 {[%clk 0:02:55]}  e6 {[%clk 0:02:59]} 3. g3 {[%clk 0:02:53]}  Bb4+ {[%clk 0:02:54]} 4. Bd2 {[%clk 0:02:52]}  c5 {[%clk 0:02:55]} 5. Bg2 {[%clk 0:02:50]}  O-O {[%clk 0:02:54]} 6. Bxb4 {[%clk 0:02:50]}  cxb4 {[%clk 0:02:55]} 7. Nf3 {[%clk 0:02:50]}  d6 {[%clk 0:02:54]} 8. O-O {[%clk 0:02:50]}  Nc6 {[%clk 0:02:55]} 9. Nbd2 {[%clk 0:02:44]}  e5 {[%clk 0:02:55]} 10. d5 {[%clk 0:02:39]}  Nb8 {[%clk 0:02:54]} 11. Ne1 {[%clk 0:02:30]}  a5 {[%clk 0:02:47]} 12. a3 {[%clk 0:02:30]}  bxa3 {[%clk 0:02:46]} 13. Rxa3 {[%clk 0:02:28]}  Na6 {[%clk 0:02:41]} 14. Nd3 {[%clk 0:02:28]}  Nd7 {[%clk 0:02:41]} 15. Ne4 {[%clk 0:02:20]}  Qc7 {[%clk 0:02:39]} 16. b3 {[%clk 0:02:12]}  Ndc5 {[%clk 0:02:37]} 17. Ndxc5 {[%clk 0:02:07]}  Nxc5 {[%clk 0:02:37]} 18. Nc3 {[%clk 0:02:06]}  Bd7 {[%clk 0:02:36]} 19. Qd2 {[%clk 0:02:05]}  h6 {[%clk 0:02:33]} 20. e4 {[%clk 0:02:03]}  Qb6 {[%clk 0:02:28]} 21. Qc2 {[%clk 0:02:01]}  f5 {[%clk 0:02:26]} 22. Bh3 {[%clk 0:01:57]}  f4 {[%clk 0:02:23]} 23. Bxd7 {[%clk 0:01:56]}  Nxd7 {[%clk 0:02:23]} 24. Nb5 {[%clk 0:01:47]}  fxg3 {[%clk 0:02:20]} 25. hxg3 {[%clk 0:01:46]}  Rf3 {[%clk 0:02:20]} 26. Kg2 {[%clk 0:01:20]}  Raf8 {[%clk 0:02:20]} 27. Qa2 {[%clk 0:01:20]}  Nc5 {[%clk 0:02:14]} 28. Qc2 {[%clk 0:01:13]}  Nd3 {[%clk 0:02:10]} 29. Ra2 {[%clk 0:01:07]}  Rxf2+ {[%clk 0:01:55]} 30. Rxf2 {[%clk 0:01:07]}  Rxf2+ {[%clk 0:01:34]} 31. Qxf2 {[%clk 0:01:08]}  Nxf2 {[%clk 0:01:35]} 32. Rxf2 {[%clk 0:01:09]}  h5 {[%clk 0:01:25]} 33. Rf3 {[%clk 0:01:04]}  Qc5 {[%clk 0:01:22]} 34. Rf5 {[%clk 0:01:01]}  Qe3 {[%clk 0:00:56]} 35. Nxd6 {[%clk 0:01:00]}  Qxb3 {[%clk 0:00:56]} 36. Kh3 {[%clk 0:00:52]}  a4 {[%clk 0:00:53]} 37. Rxe5 {[%clk 0:00:53]}  Qd1 {[%clk 0:00:46]} 38. Re8+ {[%clk 0:00:45]}  Kh7 {[%clk 0:00:46]} 39. Ra8 {[%clk 0:00:46]}  Qh1# {[%clk 0:00:45]} 0-1

[Event "December 19 Early 2023"]
[Site "https://www.chess.com"]
[Date "2023.12.19"]
[Round "3"]
[White "Dwilewicz, Katarzyna"]
[Black "Janaszak, Dawid"]
[Result "0-1"]
[Board "126"]
[TimeControl "180+1"]
[WhiteFideId "1148486"]
[BlackFideId "1119206"]
[WhiteElo "2098"]
[BlackElo "2218"]
[WhiteTeam "POL"]
[BlackTeam "POL"]
[WhiteClock "0:00:54"]
[BlackClock "0:00:55"]

1. e4 {[%clk 0:03:00]}  c5 {[%clk 0:02:59]} 2. c3 {[%clk 0:03:00]}  e5 {[%clk 0:02:58]} 3. Nf3 {[%clk 0:02:58]}  Nc6 {[%clk 0:02:58]} 4. d4 {[%clk 0:02:57]}  cxd4 {[%clk 0:02:58]} 5. cxd4 {[%clk 0:02:58]}  exd4 {[%clk 0:02:59]} 6. Nxd4 {[%clk 0:02:58]}  Nf6 {[%clk 0:02:59]} 7. Nc3 {[%clk 0:02:59]}  Bb4 {[%clk 0:02:55]} 8. Nxc6 {[%clk 0:02:55]}  bxc6 {[%clk 0:02:56]} 9. Bd3 {[%clk 0:02:54]}  O-O {[%clk 0:02:55]} 10. O-O {[%clk 0:02:54]}  Re8 {[%clk 0:02:55]} 11. Qf3 {[%clk 0:02:36]}  h6 {[%clk 0:02:46]} 12. h3 {[%clk 0:02:28]}  d5 {[%clk 0:02:44]} 13. exd5 {[%clk 0:02:28]}  cxd5 {[%clk 0:02:43]} 14. Bf4 {[%clk 0:02:22]}  Bb7 {[%clk 0:02:34]} 15. Rad1 {[%clk 0:02:11]}  Qb6 {[%clk 0:02:30]} 16. Be3 {[%clk 0:02:05]}  d4 {[%clk 0:02:09]} 17. Bxd4 {[%clk 0:02:04]}  Bxf3 {[%clk 0:02:09]} 18. Bxb6 {[%clk 0:02:04]}  Bxd1 {[%clk 0:02:10]} 19. Bb5 {[%clk 0:01:40]}  axb6 {[%clk 0:01:56]} 20. Bxe8 {[%clk 0:01:38]}  Bxc3 {[%clk 0:01:50]} 21. Bc6 {[%clk 0:01:21]}  Rc8 {[%clk 0:01:24]} 22. Bb7 {[%clk 0:01:19]}  Rc7 {[%clk 0:01:24]} 23. Rxd1 {[%clk 0:01:19]}  Rxb7 {[%clk 0:01:23]} 24. bxc3 {[%clk 0:01:19]}  Ne4 {[%clk 0:01:20]} 25. c4 {[%clk 0:01:15]}  Nc3 {[%clk 0:01:20]} 26. Rd2 {[%clk 0:01:10]}  Ra7 {[%clk 0:01:17]} 27. Rb2 {[%clk 0:01:08]}  Ra6 {[%clk 0:01:09]} 28. a3 {[%clk 0:01:05]}  Kf8 {[%clk 0:01:05]} 29. f3 {[%clk 0:01:05]}  Ke7 {[%clk 0:01:03]} 30. Kf1 {[%clk 0:01:04]}  Kd6 {[%clk 0:01:03]} 31. Ke1 {[%clk 0:01:02]}  Kc5 {[%clk 0:01:01]} 32. Kd2 {[%clk 0:01:00]}  Rxa3 {[%clk 0:00:58]} 33. Rc2 {[%clk 0:00:56]}  Kxc4 {[%clk 0:00:57]} 34. g4 {[%clk 0:00:54]}  b5 {[%clk 0:00:56]} 35. Rb2 {[%clk 0:00:54]}  b4 {[%clk 0:00:55]} 0-1

[Event "December 19 Early 2023"]
[Site "https://www.chess.com"]
[Date "2023.12.19"]
[Round "3"]
[White "Kvaloy, Aksel Bu"]
[Black "Salinas Tomas, Daniel"]
[Result "0-1"]
[Board "127"]
[TimeControl "180+1"]
[WhiteFideId "1528815"]
[BlackFideId "24597716"]
[WhiteElo "2265"]
[BlackElo "2172"]
[WhiteTeam "NOR"]
[BlackTeam "ESP"]
[WhiteClock "0:01:00"]
[BlackClock "0:00:55"]

1. d4 {[%clk 0:03:00]}  d5 {[%clk 0:02:59]} 2. Nf3 {[%clk 0:03:01]}  Nf6 {[%clk 0:02:59]} 3. Bf4 {[%clk 0:03:01]}  e6 {[%clk 0:02:59]} 4. Nbd2 {[%clk 0:03:00]}  Bd6 {[%clk 0:03:00]} 5. Ne5 {[%clk 0:02:59]}  c5 {[%clk 0:02:58]} 6. e3 {[%clk 0:02:59]}  Nc6 {[%clk 0:02:55]} 7. c3 {[%clk 0:02:55]}  Qc7 {[%clk 0:02:52]} 8. Ndf3 {[%clk 0:02:55]}  Nd7 {[%clk 0:02:52]} 9. Bd3 {[%clk 0:02:45]}  Ncxe5 {[%clk 0:02:43]} 10. dxe5 {[%clk 0:02:37]}  Nxe5 {[%clk 0:02:44]} 11. Bxe5 {[%clk 0:02:29]}  Bxe5 {[%clk 0:02:45]} 12. O-O {[%clk 0:02:28]}  g6 {[%clk 0:02:15]} 13. Bb5+ {[%clk 0:02:20]}  Kf8 {[%clk 0:02:14]} 14. Re1 {[%clk 0:02:20]}  a6 {[%clk 0:02:07]} 15. Ba4 {[%clk 0:02:20]}  b5 {[%clk 0:02:05]} 16. Bc2 {[%clk 0:02:20]}  Bb7 {[%clk 0:02:05]} 17. e4 {[%clk 0:02:19]}  d4 {[%clk 0:01:59]} 18. cxd4 {[%clk 0:02:17]}  cxd4 {[%clk 0:01:55]} 19. Qd2 {[%clk 0:02:15]}  Kg7 {[%clk 0:01:52]} 20. Rad1 {[%clk 0:02:12]}  Rhd8 {[%clk 0:01:49]} 21. Bb3 {[%clk 0:02:07]}  Rac8 {[%clk 0:01:44]} 22. h4 {[%clk 0:02:01]}  h5 {[%clk 0:01:34]} 23. g3 {[%clk 0:01:47]}  a5 {[%clk 0:01:30]} 24. Ng5 {[%clk 0:01:47]}  Bf6 {[%clk 0:01:13]} 25. Nf3 {[%clk 0:01:11]}  a4 {[%clk 0:01:08]} 26. e5 {[%clk 0:01:11]}  Be7 {[%clk 0:01:06]} 27. Bxe6 {[%clk 0:01:11]}  fxe6 {[%clk 0:01:02]} 28. Nxd4 {[%clk 0:01:10]}  Rxd4 {[%clk 0:00:56]} 29. Qxd4 {[%clk 0:01:10]}  Qc6 {[%clk 0:00:57]} 30. f3 {[%clk 0:01:00]}  Bc5 {[%clk 0:00:55]} 0-1

[Event "December 19 Early 2023"]
[Site "https://www.chess.com"]
[Date "2023.12.19"]
[Round "3"]
[White "Goncalves, Davi Sulzbacher"]
[Black "Burovic, Rijad"]
[Result "0-1"]
[Board "129"]
[TimeControl "180+1"]
[WhiteFideId "2154510"]
[BlackFideId "14407701"]
[WhiteElo "2175"]
[BlackElo "2384"]
[WhiteTeam "BRA"]
[BlackTeam "BIH"]
[WhiteClock "0:00:30"]
[BlackClock "0:01:29"]

1. d4 {[%clk 0:03:00]}  d6 {[%clk 0:02:59]} 2. c4 {[%clk 0:03:01]}  e5 {[%clk 0:02:59]} 3. Nf3 {[%clk 0:03:01]}  e4 {[%clk 0:02:58]} 4. Nfd2 {[%clk 0:03:01]}  f5 {[%clk 0:02:59]} 5. Nc3 {[%clk 0:03:01]}  Nf6 {[%clk 0:02:59]} 6. e3 {[%clk 0:02:59]}  c6 {[%clk 0:02:57]} 7. Be2 {[%clk 0:02:58]}  d5 {[%clk 0:02:56]} 8. O-O {[%clk 0:02:59]}  Bd6 {[%clk 0:02:55]} 9. b3 {[%clk 0:02:49]}  h5 {[%clk 0:02:51]} 10. f4 {[%clk 0:02:32]}  Ng4 {[%clk 0:02:37]} 11. Bxg4 {[%clk 0:02:12]}  hxg4 {[%clk 0:02:38]} 12. g3 {[%clk 0:02:10]}  Be6 {[%clk 0:02:33]} 13. cxd5 {[%clk 0:02:09]}  cxd5 {[%clk 0:02:12]} 14. Nb5 {[%clk 0:02:08]}  Nc6 {[%clk 0:02:02]} 15. Ba3 {[%clk 0:02:03]}  Bb8 {[%clk 0:01:58]} 16. Rc1 {[%clk 0:01:43]}  g5 {[%clk 0:01:58]} 17. fxg5 {[%clk 0:01:36]}  Qxg5 {[%clk 0:01:48]} 18. Qe2 {[%clk 0:01:35]}  Kd7 {[%clk 0:01:47]} 19. Rc2 {[%clk 0:01:24]}  Rh3 {[%clk 0:01:34]} 20. Rf2 {[%clk 0:01:01]}  Bxg3 {[%clk 0:01:34]} 21. hxg3 {[%clk 0:00:58]}  Rxg3+ {[%clk 0:01:35]} 22. Rg2 {[%clk 0:00:55]}  Rxe3 {[%clk 0:01:35]} 23. Qf2 {[%clk 0:00:52]}  Rh8 {[%clk 0:01:32]} 24. Nf1 {[%clk 0:00:45]}  Reh3 {[%clk 0:01:31]} 25. Rh2 {[%clk 0:00:30]}  g3 {[%clk 0:01:29]} 0-1

[Event "December 19 Early 2023"]
[Site "https://www.chess.com"]
[Date "2023.12.19"]
[Round "3"]
[White "Rojas Alarcon, Julian Antonio"]
[Black "Ozcan, Kaan"]
[Result "1-0"]
[Board "134"]
[TimeControl "180+1"]
[WhiteFideId "5107407"]
[BlackFideId "34566422"]
[WhiteElo "2340"]
[BlackElo "2153"]
[WhiteTeam "MEX"]
[BlackTeam "TUR"]
[WhiteClock "0:00:35"]
[BlackClock "0:00:00"]

1. d4 {[%clk 0:03:00]}  Nf6 {[%clk 0:02:59]} 2. c4 {[%clk 0:03:00]}  e6 {[%clk 0:02:59]} 3. Nc3 {[%clk 0:02:59]}  d5 {[%clk 0:02:59]} 4. Nf3 {[%clk 0:02:55]}  a6 {[%clk 0:02:56]} 5. cxd5 {[%clk 0:02:54]}  exd5 {[%clk 0:02:57]} 6. Bf4 {[%clk 0:02:51]}  Bd6 {[%clk 0:02:56]} 7. Bg3 {[%clk 0:02:50]}  O-O {[%clk 0:02:56]} 8. e3 {[%clk 0:02:47]}  b5 {[%clk 0:02:51]} 9. Bd3 {[%clk 0:02:46]}  Re8 {[%clk 0:02:49]} 10. Rc1 {[%clk 0:02:45]}  Bg4 {[%clk 0:02:40]} 11. O-O {[%clk 0:02:43]}  Bxg3 {[%clk 0:02:38]} 12. hxg3 {[%clk 0:02:43]}  Nbd7 {[%clk 0:02:39]} 13. Be2 {[%clk 0:02:40]}  Rc8 {[%clk 0:02:37]} 14. a4 {[%clk 0:02:39]}  b4 {[%clk 0:02:33]} 15. Nb1 {[%clk 0:02:39]}  a5 {[%clk 0:02:33]} 16. Nbd2 {[%clk 0:02:40]}  c5 {[%clk 0:02:29]} 17. dxc5 {[%clk 0:02:35]}  Nxc5 {[%clk 0:02:30]} 18. Bb5 {[%clk 0:02:25]}  Re7 {[%clk 0:02:28]} 19. Nb3 {[%clk 0:01:57]}  Nxb3 {[%clk 0:02:07]} 20. Qxb3 {[%clk 0:01:58]}  Bxf3 {[%clk 0:02:06]} 21. gxf3 {[%clk 0:01:57]}  Rec7 {[%clk 0:02:06]} 22. Rcd1 {[%clk 0:01:51]}  Qe7 {[%clk 0:02:04]} 23. Rd2 {[%clk 0:01:48]}  Qe5 {[%clk 0:02:02]} 24. Rfd1 {[%clk 0:01:47]}  h5 {[%clk 0:01:57]} 25. Ba6 {[%clk 0:01:47]}  Ra8 {[%clk 0:01:44]} 26. Bf1 {[%clk 0:01:45]}  h4 {[%clk 0:01:42]} 27. g4 {[%clk 0:01:46]}  Qg5 {[%clk 0:01:39]} 28. Bg2 {[%clk 0:01:42]}  Rac8 {[%clk 0:01:33]} 29. Qd3 {[%clk 0:01:42]}  Qh6 {[%clk 0:01:21]} 30. Kh2 {[%clk 0:01:37]}  Qg5 {[%clk 0:01:16]} 31. Qd4 {[%clk 0:01:37]}  Rc4 {[%clk 0:01:12]} 32. Qb6 {[%clk 0:01:30]}  R4c5 {[%clk 0:00:44]} 33. Bh3 {[%clk 0:01:19]}  R8c6 {[%clk 0:00:25]} 34. Qa7 {[%clk 0:01:03]}  Rc7 {[%clk 0:00:09]} 35. Qb8+ {[%clk 0:01:02]}  Rc8 {[%clk 0:00:09]} 36. Qf4 {[%clk 0:01:02]}  Qxf4+ {[%clk 0:00:09]} 37. exf4 {[%clk 0:01:02]}  Ra8 {[%clk 0:00:07]} 38. g5 {[%clk 0:01:03]}  Nh5 {[%clk 0:00:07]} 39. f5 {[%clk 0:00:59]}  Rd8 {[%clk 0:00:05]} 40. Bg4 {[%clk 0:00:54]}  g6 {[%clk 0:00:05]} 41. Bxh5 {[%clk 0:00:54]}  gxh5 {[%clk 0:00:06]} 42. Rd4 {[%clk 0:00:54]}  Rc2 {[%clk 0:00:05]} 43. R1d2 {[%clk 0:00:54]}  Rxd2 {[%clk 0:00:04]} 44. Rxd2 {[%clk 0:00:55]}  Kg7 {[%clk 0:00:03]} 45. Kh3 {[%clk 0:00:56]}  d4 {[%clk 0:00:02]} 46. Kxh4 {[%clk 0:00:56]}  Rd5 {[%clk 0:00:03]} 47. Kxh5 {[%clk 0:00:53]}  Rxf5 {[%clk 0:00:03]} 48. Kg4 {[%clk 0:00:54]}  Rd5 {[%clk 0:00:03]} 49. f4 {[%clk 0:00:54]}  Kg6 {[%clk 0:00:04]} 50. Rd3 {[%clk 0:00:44]}  f6 {[%clk 0:00:04]} 51. gxf6 {[%clk 0:00:44]}  Kxf6 {[%clk 0:00:05]} 52. f3 {[%clk 0:00:41]}  Rd6 {[%clk 0:00:03]} 53. b3 {[%clk 0:00:39]}  Rd5 {[%clk 0:00:00]} 54. f5 {[%clk 0:00:35]} 1-0